[Event "Titled Tuesday Blitz March 28 Early 2023"]
[White "Hasangatin, Ramil"]
[Black "Kollars, Dmitrij"]
[WhiteFideId "4122160"]
[BlackFideId "12909572"]
[WhiteElo "2275"]
[BlackElo "2584"]
[Result "1-0"]
[Round "07"]
[TimeControl "180+2"]
[Date "2023.03.28"]
[WhiteClock "0:00:08"]
[BlackClock "0:00:13"]

1. e4 {[%clk 0:03:00]}  e5 {[%clk 0:02:57]} 2. Nf3 {[%clk 0:03:00]}  Nc6 {[%clk 0:02:58]} 3. Nc3 {[%clk 0:03:00]}  Nf6 {[%clk 0:02:57]} 4. d4 {[%clk 0:03:00]}  exd4 {[%clk 0:02:57]} 5. Nxd4 {[%clk 0:03:01]}  Bc5 {[%clk 0:02:57]} 6. Nxc6 {[%clk 0:02:53]}  bxc6 {[%clk 0:02:58]} 7. e5 {[%clk 0:02:54]}  Qe7 {[%clk 0:02:57]} 8. Qe2 {[%clk 0:02:53]}  Nd5 {[%clk 0:02:57]} 9. Ne4 {[%clk 0:02:47]}  Bd4 {[%clk 0:02:39]} 10. f4 {[%clk 0:02:39]}  f5 {[%clk 0:02:37]} 11. exf6 {[%clk 0:02:24]}  Nxf6 {[%clk 0:02:36]} 12. Nxf6+ {[%clk 0:02:24]}  Bxf6 {[%clk 0:02:37]} 13. Qxe7+ {[%clk 0:02:21]}  Kxe7 {[%clk 0:02:38]} 14. Bd3 {[%clk 0:02:13]}  Rb8 {[%clk 0:02:35]} 15. c3 {[%clk 0:02:08]}  d6 {[%clk 0:02:34]} 16. O-O {[%clk 0:02:06]}  Be6 {[%clk 0:02:34]} 17. Rf2 {[%clk 0:01:45]}  a5 {[%clk 0:02:27]} 18. a4 {[%clk 0:01:28]}  Kd7 {[%clk 0:02:26]} 19. Be3 {[%clk 0:01:25]}  h5 {[%clk 0:02:23]} 20. Rd2 {[%clk 0:01:18]}  Rb7 {[%clk 0:02:02]} 21. Re1 {[%clk 0:00:44]}  Rhb8 {[%clk 0:01:57]} 22. Ree2 {[%clk 0:00:44]}  Bg4 {[%clk 0:01:54]} 23. Rf2 {[%clk 0:00:43]}  Bh4 {[%clk 0:01:54]} 24. g3 {[%clk 0:00:42]}  Bf6 {[%clk 0:01:54]} 25. Kg2 {[%clk 0:00:42]}  Re8 {[%clk 0:01:51]} 26. h3 {[%clk 0:00:32]}  Be6 {[%clk 0:01:36]} 27. Rfe2 {[%clk 0:00:26]}  Bf7 {[%clk 0:01:22]} 28. Bf5+ {[%clk 0:00:25]}  Kd8 {[%clk 0:01:23]} 29. g4 {[%clk 0:00:16]}  hxg4 {[%clk 0:01:11]} 30. hxg4 {[%clk 0:00:17]}  g6 {[%clk 0:01:09]} 31. Bd3 {[%clk 0:00:17]}  Kd7 {[%clk 0:01:00]} 32. Bf2 {[%clk 0:00:16]}  Rbb8 {[%clk 0:00:57]} 33. Rxe8 {[%clk 0:00:15]}  Rxe8 {[%clk 0:00:58]} 34. Bg3 {[%clk 0:00:14]}  Rg8 {[%clk 0:00:49]} 35. g5 {[%clk 0:00:14]}  Be7 {[%clk 0:00:45]} 36. Bf2 {[%clk 0:00:13]}  Bb3 {[%clk 0:00:40]} 37. Bc2 {[%clk 0:00:13]}  Bxc2 {[%clk 0:00:33]} 38. Rxc2 {[%clk 0:00:12]}  d5 {[%clk 0:00:34]} 39. Re2 {[%clk 0:00:12]}  Bd6 {[%clk 0:00:33]} 40. Bg3 {[%clk 0:00:12]}  Rf8 {[%clk 0:00:31]} 41. Kf3 {[%clk 0:00:12]}  Rh8 {[%clk 0:00:28]} 42. Rh2 {[%clk 0:00:12]}  Rxh2 {[%clk 0:00:27]} 43. Bxh2 {[%clk 0:00:13]}  Ke6 {[%clk 0:00:28]} 44. Kg4 {[%clk 0:00:13]}  c5 {[%clk 0:00:28]} 45. Bg3 {[%clk 0:00:13]}  c4 {[%clk 0:00:27]} 46. Bf2 {[%clk 0:00:13]}  c5 {[%clk 0:00:17]} 47. Be3 {[%clk 0:00:13]}  Be7 {[%clk 0:00:17]} 48. Bf2 {[%clk 0:00:13]}  Bf8 {[%clk 0:00:18]} 49. Be3 {[%clk 0:00:13]}  Kd6 {[%clk 0:00:18]} 50. f5 {[%clk 0:00:13]}  Ke5 {[%clk 0:00:16]} 51. fxg6 {[%clk 0:00:11]}  Ke4 {[%clk 0:00:16]} 52. Bxc5 {[%clk 0:00:09]}  Bxc5 {[%clk 0:00:12]} 53. g7 {[%clk 0:00:09]}  d4 {[%clk 0:00:13]} 54. g8=Q {[%clk 0:00:08]} 1-0


[Site "https://www.chess.com"]

[Event "Titled Tuesday Blitz March 28 Early 2023"]
[White "Prohaszka, Peter"]
[Black "Wei, Yi"]
[WhiteFideId "726265"]
[BlackFideId "8603405"]
[WhiteElo "2626"]
[BlackElo "2686"]
[Result "1-0"]
[Round "07"]
[TimeControl "180+2"]
[Date "2023.03.28"]
[WhiteClock "0:00:07"]
[BlackClock "0:00:04"]

1. d4 {[%clk 0:02:57]}  b5 {[%clk 0:02:55]} 2. a4 {[%clk 0:02:48]}  b4 {[%clk 0:02:52]} 3. a5 {[%clk 0:02:45]}  e6 {[%clk 0:02:47]} 4. Nf3 {[%clk 0:02:45]}  Nf6 {[%clk 0:02:46]} 5. e3 {[%clk 0:02:45]}  d5 {[%clk 0:02:40]} 6. c4 {[%clk 0:02:40]}  bxc3 {[%clk 0:02:32]} 7. Nxc3 {[%clk 0:02:37]}  Bd6 {[%clk 0:02:29]} 8. Bb5+ {[%clk 0:02:26]}  c6 {[%clk 0:02:26]} 9. Bd3 {[%clk 0:02:26]}  O-O {[%clk 0:02:22]} 10. O-O {[%clk 0:02:26]}  c5 {[%clk 0:02:21]} 11. dxc5 {[%clk 0:02:21]}  Bxc5 {[%clk 0:02:21]} 12. Qa4 {[%clk 0:02:20]}  Bd7 {[%clk 0:02:10]} 13. Qh4 {[%clk 0:02:19]}  Nc6 {[%clk 0:02:09]} 14. e4 {[%clk 0:01:56]}  Nb4 {[%clk 0:02:02]} 15. Bb1 {[%clk 0:01:52]}  Nxe4 {[%clk 0:02:00]} 16. Nxe4 {[%clk 0:01:24]}  Qxh4 {[%clk 0:01:58]} 17. Nxh4 {[%clk 0:01:25]}  dxe4 {[%clk 0:01:58]} 18. Bxe4 {[%clk 0:01:26]}  Rac8 {[%clk 0:01:49]} 19. Nf3 {[%clk 0:01:22]}  Bb5 {[%clk 0:01:41]} 20. Rd1 {[%clk 0:01:16]}  f5 {[%clk 0:01:39]} 21. Bb7 {[%clk 0:01:12]}  Rc7 {[%clk 0:01:38]} 22. a6 {[%clk 0:01:13]}  Nd3 {[%clk 0:01:36]} 23. Be3 {[%clk 0:01:07]}  Rd8 {[%clk 0:00:37]} 24. Ne5 {[%clk 0:00:54]}  Bxe3 {[%clk 0:00:17]} 25. fxe3 {[%clk 0:00:55]}  Kf8 {[%clk 0:00:07]} 26. Ra5 {[%clk 0:00:30]}  Ke7 {[%clk 0:00:06]} 27. Rxb5 {[%clk 0:00:08]}  Nxe5 {[%clk 0:00:06]} 28. Rxd8 {[%clk 0:00:09]}  Rc1+ {[%clk 0:00:07]} 29. Kf2 {[%clk 0:00:09]}  Ng4+ {[%clk 0:00:07]} 30. Ke2 {[%clk 0:00:09]}  Kxd8 {[%clk 0:00:07]} 31. Kd2 {[%clk 0:00:06]}  Rc7 {[%clk 0:00:06]} 32. h3 {[%clk 0:00:06]}  Nf6 {[%clk 0:00:07]} 33. Kd3 {[%clk 0:00:06]}  Nd7 {[%clk 0:00:07]} 34. Ra5 {[%clk 0:00:04]}  Nb6 {[%clk 0:00:06]} 35. b4 {[%clk 0:00:04]}  Ke7 {[%clk 0:00:06]} 36. Ke2 {[%clk 0:00:03]}  Kd6 {[%clk 0:00:06]} 37. g4 {[%clk 0:00:03]}  g6 {[%clk 0:00:05]} 38. gxf5 {[%clk 0:00:04]}  gxf5 {[%clk 0:00:06]} 39. Kf3 {[%clk 0:00:05]}  Nc4 {[%clk 0:00:06]} 40. Ra1 {[%clk 0:00:04]}  Ne5+ {[%clk 0:00:06]} 41. Kf4 {[%clk 0:00:03]}  Rg7 {[%clk 0:00:06]} 42. Rd1+ {[%clk 0:00:03]}  Ke7 {[%clk 0:00:06]} 43. Kxe5 {[%clk 0:00:04]}  Rg3 {[%clk 0:00:06]} 44. Kd4 {[%clk 0:00:04]}  Rxh3 {[%clk 0:00:05]} 45. e4 {[%clk 0:00:05]}  fxe4 {[%clk 0:00:04]} 46. Bxe4 {[%clk 0:00:05]}  Rb3 {[%clk 0:00:04]} 47. Kc4 {[%clk 0:00:05]}  Rb2 {[%clk 0:00:05]} 48. Bc6 {[%clk 0:00:06]}  Rc2+ {[%clk 0:00:04]} 49. Kb5 {[%clk 0:00:06]}  h5 {[%clk 0:00:04]} 50. Rd7+ {[%clk 0:00:07]} 1-0


[Site "https://www.chess.com"]

[Event "Titled Tuesday Blitz March 28 Early 2023"]
[White "Hamitevici, Vladimir"]
[Black "Durarbayli, Vasif"]
[WhiteFideId "13902393"]
[BlackFideId "13402935"]
[WhiteElo "2401"]
[BlackElo "2543"]
[Result "0-1"]
[Round "07"]
[TimeControl "180+2"]
[Date "2023.03.28"]
[WhiteClock "0:00:06"]
[BlackClock "0:00:03"]

1. b3 {[%clk 0:03:00]}  e5 {[%clk 0:02:59]} 2. Bb2 {[%clk 0:02:59]}  Nc6 {[%clk 0:02:59]} 3. c4 {[%clk 0:02:58]}  Nf6 {[%clk 0:02:50]} 4. e3 {[%clk 0:02:58]}  d5 {[%clk 0:02:33]} 5. cxd5 {[%clk 0:02:59]}  Nxd5 {[%clk 0:02:32]} 6. a3 {[%clk 0:02:56]}  Bd6 {[%clk 0:02:31]} 7. Bc4 {[%clk 0:02:45]}  Nb6 {[%clk 0:02:28]} 8. Be2 {[%clk 0:02:45]}  Qg5 {[%clk 0:02:25]} 9. Nf3 {[%clk 0:02:45]}  Qxg2 {[%clk 0:02:22]} 10. Rg1 {[%clk 0:02:45]}  Qh3 {[%clk 0:02:21]} 11. Rxg7 {[%clk 0:02:38]}  Qh6 {[%clk 0:02:05]} 12. Rg1 {[%clk 0:02:06]}  Be6 {[%clk 0:01:46]} 13. d3 {[%clk 0:01:58]}  O-O-O {[%clk 0:01:42]} 14. Nbd2 {[%clk 0:01:59]}  Rhg8 {[%clk 0:01:26]} 15. Rxg8 {[%clk 0:01:59]}  Rxg8 {[%clk 0:01:27]} 16. Qc2 {[%clk 0:01:59]}  f5 {[%clk 0:01:19]} 17. b4 {[%clk 0:01:13]}  a6 {[%clk 0:00:48]} 18. h4 {[%clk 0:00:51]}  Bd5 {[%clk 0:00:37]} 19. e4 {[%clk 0:00:39]}  Be6 {[%clk 0:00:33]} 20. Ng5 {[%clk 0:00:35]}  Bd7 {[%clk 0:00:28]} 21. Ndf3 {[%clk 0:00:35]}  Qg6 {[%clk 0:00:23]} 22. Qb3 {[%clk 0:00:24]}  h6 {[%clk 0:00:15]} 23. h5 {[%clk 0:00:24]}  Qg7 {[%clk 0:00:14]} 24. Ne6 {[%clk 0:00:17]}  Qf7 {[%clk 0:00:07]} 25. exf5 {[%clk 0:00:09]}  Kb8 {[%clk 0:00:01]} 26. O-O-O {[%clk 0:00:05]}  Ne7 {[%clk 0:00:01]} 27. Nc5 {[%clk 0:00:04]}  Qxb3 {[%clk 0:00:02]} 28. Nxb3 {[%clk 0:00:05]}  Bxf5 {[%clk 0:00:01]} 29. Rg1 {[%clk 0:00:05]}  Rxg1+ {[%clk 0:00:01]} 30. Nxg1 {[%clk 0:00:06]}  Nbd5 {[%clk 0:00:01]} 31. Nc5 {[%clk 0:00:03]}  Nf4 {[%clk 0:00:01]} 32. Bf1 {[%clk 0:00:04]}  Bxc5 {[%clk 0:00:01]} 33. bxc5 {[%clk 0:00:04]}  Bxd3 {[%clk 0:00:02]} 34. Bh3 {[%clk 0:00:02]}  Be4 {[%clk 0:00:01]} 35. Kd2 {[%clk 0:00:02]}  Nd3 {[%clk 0:00:02]} 36. Bc3 {[%clk 0:00:02]}  Bh7 {[%clk 0:00:02]} 37. Ke3 {[%clk 0:00:02]}  Nxc5 {[%clk 0:00:02]} 38. Bxe5 {[%clk 0:00:03]}  Na4 {[%clk 0:00:02]} 39. Bg7 {[%clk 0:00:03]}  Nd5+ {[%clk 0:00:02]} 40. Kd4 {[%clk 0:00:03]}  Nf4 {[%clk 0:00:03]} 41. Bxh6 {[%clk 0:00:03]}  Nxh5 {[%clk 0:00:03]} 42. Bg5 {[%clk 0:00:03]}  Ng7 {[%clk 0:00:04]} 43. Ke5 {[%clk 0:00:04]}  Ne8 {[%clk 0:00:04]} 44. Be7 {[%clk 0:00:04]}  Nd6 {[%clk 0:00:05]} 45. Bd7 {[%clk 0:00:05]}  Nb6 {[%clk 0:00:05]} 46. Bxd6 {[%clk 0:00:05]}  cxd6+ {[%clk 0:00:05]} 47. Kxd6 {[%clk 0:00:06]}  Nc4+ {[%clk 0:00:06]} 48. Kc5 {[%clk 0:00:06]}  Nxa3 {[%clk 0:00:06]} 49. f4 {[%clk 0:00:05]}  Kc7 {[%clk 0:00:07]} 50. Bg4 {[%clk 0:00:04]}  b6+ {[%clk 0:00:08]} 51. Kd4 {[%clk 0:00:04]}  Nb5+ {[%clk 0:00:08]} 52. Ke5 {[%clk 0:00:05]}  a5 {[%clk 0:00:07]} 53. f5 {[%clk 0:00:05]}  a4 {[%clk 0:00:08]} 54. f6 {[%clk 0:00:06]}  Bg8 {[%clk 0:00:08]} 55. Be6 {[%clk 0:00:06]}  Bxe6 {[%clk 0:00:08]} 56. Kxe6 {[%clk 0:00:07]}  Nd6 {[%clk 0:00:08]} 57. Ne2 {[%clk 0:00:07]}  a3 {[%clk 0:00:08]} 58. Nc3 {[%clk 0:00:07]}  Kc6 {[%clk 0:00:08]} 59. Ke5 {[%clk 0:00:08]}  Nf7+ {[%clk 0:00:06]} 60. Ke6 {[%clk 0:00:08]}  Nd6 {[%clk 0:00:04]} 61. Ke5 {[%clk 0:00:09]}  b5 {[%clk 0:00:02]} 62. Kd4 {[%clk 0:00:04]}  b4 {[%clk 0:00:02]} 63. Nd5 {[%clk 0:00:04]}  Kb5 {[%clk 0:00:03]} 64. Ne3 {[%clk 0:00:03]}  a2 {[%clk 0:00:03]} 65. Nc2 {[%clk 0:00:04]}  Nf7 {[%clk 0:00:01]} 66. Kd3 {[%clk 0:00:04]}  b3 {[%clk 0:00:02]} 67. Nd4+ {[%clk 0:00:04]}  Kb4 {[%clk 0:00:01]} 68. Nc6+ {[%clk 0:00:05]}  Ka3 {[%clk 0:00:02]} 69. Nd4 {[%clk 0:00:05]}  a1=Q {[%clk 0:00:02]} 70. Nb5+ {[%clk 0:00:06]}  Ka2 {[%clk 0:00:03]} 0-1


[Site "https://www.chess.com"]

[Event "Titled Tuesday Blitz March 28 Early 2023"]
[White "Subelj, Jan"]
[Black "Movahed, Sina"]
[WhiteFideId "14618583"]
[BlackFideId "42520835"]
[WhiteElo "2474"]
[BlackElo "2225"]
[Result "1-0"]
[Round "07"]
[TimeControl "180+2"]
[Date "2023.03.28"]
[WhiteClock "0:01:16"]
[BlackClock "0:00:16"]

1. e4 {[%clk 0:03:00]}  c5 {[%clk 0:02:59]} 2. Na3 {[%clk 0:03:00]}  Nc6 {[%clk 0:02:58]} 3. Bb5 {[%clk 0:02:59]}  g6 {[%clk 0:02:54]} 4. Bxc6 {[%clk 0:02:55]}  bxc6 {[%clk 0:02:55]} 5. d3 {[%clk 0:02:51]}  Bg7 {[%clk 0:02:56]} 6. f4 {[%clk 0:02:50]}  Rb8 {[%clk 0:02:52]} 7. c3 {[%clk 0:02:49]}  d5 {[%clk 0:02:26]} 8. Nf3 {[%clk 0:02:43]}  Ba6 {[%clk 0:02:11]} 9. e5 {[%clk 0:02:37]}  Nh6 {[%clk 0:02:03]} 10. O-O {[%clk 0:02:32]}  O-O {[%clk 0:02:01]} 11. c4 {[%clk 0:02:27]}  Nf5 {[%clk 0:02:00]} 12. b3 {[%clk 0:02:26]}  Nd4 {[%clk 0:01:56]} 13. Nc2 {[%clk 0:02:22]}  f6 {[%clk 0:01:50]} 14. Ncxd4 {[%clk 0:02:19]}  cxd4 {[%clk 0:01:45]} 15. Nxd4 {[%clk 0:02:19]}  Qb6 {[%clk 0:01:42]} 16. Be3 {[%clk 0:02:17]}  fxe5 {[%clk 0:01:41]} 17. fxe5 {[%clk 0:01:57]}  Rxf1+ {[%clk 0:01:17]} 18. Qxf1 {[%clk 0:01:58]}  Rf8 {[%clk 0:01:16]} 19. Qe2 {[%clk 0:01:50]}  Bxe5 {[%clk 0:01:08]} 20. Nf3 {[%clk 0:01:47]}  Qc7 {[%clk 0:00:58]} 21. Nxe5 {[%clk 0:01:47]}  Qxe5 {[%clk 0:00:59]} 22. Re1 {[%clk 0:01:48]}  Qc7 {[%clk 0:00:48]} 23. Bc5 {[%clk 0:01:46]}  Rf7 {[%clk 0:00:46]} 24. Bxe7 {[%clk 0:01:44]}  Qb6+ {[%clk 0:00:42]} 25. c5 {[%clk 0:01:44]}  Qc7 {[%clk 0:00:42]} 26. Bd6 {[%clk 0:01:44]}  Qd7 {[%clk 0:00:41]} 27. h3 {[%clk 0:01:33]}  Bc8 {[%clk 0:00:37]} 28. Qe8+ {[%clk 0:01:31]}  Kg7 {[%clk 0:00:37]} 29. Bf8+ {[%clk 0:01:20]}  Rxf8 {[%clk 0:00:28]} 30. Re7+ {[%clk 0:01:21]}  Kg8 {[%clk 0:00:23]} 31. Qxd7 {[%clk 0:01:19]}  Bxd7 {[%clk 0:00:23]} 32. Rxd7 {[%clk 0:01:20]}  Re8 {[%clk 0:00:18]} 33. Rxa7 {[%clk 0:01:18]}  Re2 {[%clk 0:00:17]} 34. Ra6 {[%clk 0:01:17]}  d4 {[%clk 0:00:15]} 35. Rxc6 {[%clk 0:01:16]}  Rxa2 {[%clk 0:00:15]} 36. Rd6 {[%clk 0:01:16]}  Rb2 {[%clk 0:00:15]} 37. Rxd4 {[%clk 0:01:16]}  Rxb3 {[%clk 0:00:16]} 38. c6 {[%clk 0:01:16]} 1-0


[Site "https://www.chess.com"]

[Event "Titled Tuesday Blitz March 28 Early 2023"]
[White "Aveskulov, Valeriy"]
[Black "Moussard, Jules"]
[WhiteFideId "14109743"]
[BlackFideId "642908"]
[WhiteElo "2552"]
[BlackElo "2610"]
[Result "1-0"]
[Round "07"]
[TimeControl "180+2"]
[Date "2023.03.28"]
[WhiteClock "0:00:14"]
[BlackClock "0:01:16"]

1. e4 {[%clk 0:03:00]}  Nf6 {[%clk 0:02:59]} 2. e5 {[%clk 0:03:00]}  Nd5 {[%clk 0:03:00]} 3. d4 {[%clk 0:03:01]}  d6 {[%clk 0:03:01]} 4. Nf3 {[%clk 0:03:01]}  g6 {[%clk 0:03:00]} 5. Bc4 {[%clk 0:02:59]}  Nb6 {[%clk 0:03:00]} 6. Bb3 {[%clk 0:03:00]}  Bg7 {[%clk 0:03:00]} 7. a4 {[%clk 0:02:50]}  a5 {[%clk 0:02:47]} 8. Ng5 {[%clk 0:02:43]}  e6 {[%clk 0:02:47]} 9. Qf3 {[%clk 0:02:40]}  Qe7 {[%clk 0:02:46]} 10. Ne4 {[%clk 0:02:30]}  h6 {[%clk 0:02:46]} 11. O-O {[%clk 0:01:55]}  Nc6 {[%clk 0:02:41]} 12. Nf6+ {[%clk 0:01:45]}  Kf8 {[%clk 0:02:39]} 13. Qe4 {[%clk 0:00:42]}  dxe5 {[%clk 0:02:33]} 14. dxe5 {[%clk 0:00:43]}  Nxe5 {[%clk 0:02:33]} 15. Qxe5 {[%clk 0:00:43]}  Bxf6 {[%clk 0:02:32]} 16. Qe2 {[%clk 0:00:44]}  Kg7 {[%clk 0:02:30]} 17. Nd2 {[%clk 0:00:45]}  Kh7 {[%clk 0:02:25]} 18. Ne4 {[%clk 0:00:45]}  Bg7 {[%clk 0:02:26]} 19. h4 {[%clk 0:00:41]}  f5 {[%clk 0:02:20]} 20. Nc3 {[%clk 0:00:36]}  Qxh4 {[%clk 0:02:18]} 21. g3 {[%clk 0:00:35]}  Qe7 {[%clk 0:02:16]} 22. Kg2 {[%clk 0:00:29]}  Bd7 {[%clk 0:02:16]} 23. Rh1 {[%clk 0:00:29]}  Rhe8 {[%clk 0:02:12]} 24. Bxh6 {[%clk 0:00:19]}  Bxh6 {[%clk 0:02:11]} 25. Rxh6+ {[%clk 0:00:20]}  Kxh6 {[%clk 0:02:10]} 26. Rh1+ {[%clk 0:00:20]}  Kg7 {[%clk 0:02:07]} 27. Qe5+ {[%clk 0:00:21]}  Qf6 {[%clk 0:02:02]} 28. Rh7+ {[%clk 0:00:20]}  Kxh7 {[%clk 0:02:03]} 29. Qxf6 {[%clk 0:00:21]}  Rf8 {[%clk 0:01:38]} 30. Qe7+ {[%clk 0:00:20]}  Kh6 {[%clk 0:01:39]} 31. Ne2 {[%clk 0:00:17]}  Rae8 {[%clk 0:01:37]} 32. Qh4+ {[%clk 0:00:18]}  Kg7 {[%clk 0:01:38]} 33. Nf4 {[%clk 0:00:16]}  Rh8 {[%clk 0:01:38]} 34. Qg5 {[%clk 0:00:17]}  Rh6 {[%clk 0:01:38]} 35. g4 {[%clk 0:00:16]}  e5 {[%clk 0:01:33]} 36. Nh5+ {[%clk 0:00:16]}  Rxh5 {[%clk 0:01:32]} 37. gxh5 {[%clk 0:00:17]}  Bc6+ {[%clk 0:01:17]} 38. f3 {[%clk 0:00:16]}  Bd5 {[%clk 0:01:15]} 39. Qxg6+ {[%clk 0:00:17]}  Kf8 {[%clk 0:01:16]} 40. Qf6+ {[%clk 0:00:15]}  Kg8 {[%clk 0:01:16]} 41. h6 {[%clk 0:00:14]} 1-0


[Site "https://www.chess.com"]

[Event "Titled Tuesday Blitz March 28 Early 2023"]
[White "Kovalev, Vladislav"]
[Black "Tregubov, Pavel V."]
[WhiteFideId "13504398"]
[BlackFideId "4115341"]
[WhiteElo "2555"]
[BlackElo "2425"]
[Result "1-0"]
[Round "07"]
[TimeControl "180+2"]
[Date "2023.03.28"]
[WhiteClock "0:00:01"]
[BlackClock "0:00:21"]

1. e4 {[%clk 0:02:58]}  c5 {[%clk 0:02:59]} 2. Nf3 {[%clk 0:02:58]}  e6 {[%clk 0:02:59]} 3. d4 {[%clk 0:02:59]}  cxd4 {[%clk 0:02:59]} 4. Nxd4 {[%clk 0:03:00]}  Nf6 {[%clk 0:02:59]} 5. Nc3 {[%clk 0:02:58]}  Nc6 {[%clk 0:03:00]} 6. a3 {[%clk 0:02:54]}  d5 {[%clk 0:02:58]} 7. exd5 {[%clk 0:02:54]}  Nxd5 {[%clk 0:02:57]} 8. Nxc6 {[%clk 0:02:54]}  bxc6 {[%clk 0:02:57]} 9. Ne4 {[%clk 0:02:55]}  f5 {[%clk 0:02:50]} 10. Ng5 {[%clk 0:02:55]}  Be7 {[%clk 0:02:42]} 11. c4 {[%clk 0:02:56]}  Nf6 {[%clk 0:02:28]} 12. Qxd8+ {[%clk 0:02:54]}  Bxd8 {[%clk 0:02:27]} 13. Nf3 {[%clk 0:02:45]}  Bc7 {[%clk 0:02:25]} 14. Be3 {[%clk 0:02:36]}  e5 {[%clk 0:02:23]} 15. O-O-O {[%clk 0:02:37]}  Ng4 {[%clk 0:02:10]} 16. Bc5 {[%clk 0:02:33]}  e4 {[%clk 0:02:04]} 17. h3 {[%clk 0:02:23]}  Nf6 {[%clk 0:01:51]} 18. Nd4 {[%clk 0:02:15]}  Bd7 {[%clk 0:01:49]} 19. Be2 {[%clk 0:01:58]}  Kf7 {[%clk 0:01:37]} 20. g4 {[%clk 0:01:47]}  fxg4 {[%clk 0:01:28]} 21. hxg4 {[%clk 0:01:48]}  Bxg4 {[%clk 0:01:22]} 22. Bxg4 {[%clk 0:01:45]}  Nxg4 {[%clk 0:01:21]} 23. Nxc6 {[%clk 0:01:18]}  Rac8 {[%clk 0:01:16]} 24. Rd7+ {[%clk 0:01:10]}  Ke6 {[%clk 0:00:39]} 25. Re7+ {[%clk 0:01:06]}  Kf5 {[%clk 0:00:39]} 26. Nd4+ {[%clk 0:00:46]}  Kg6 {[%clk 0:00:37]} 27. Rxe4 {[%clk 0:00:39]}  Nxf2 {[%clk 0:00:26]} 28. Rg1+ {[%clk 0:00:39]}  Kh5 {[%clk 0:00:26]} 29. Re2 {[%clk 0:00:03]}  Nd3+ {[%clk 0:00:25]} 30. Kc2 {[%clk 0:00:03]}  Nxc5 {[%clk 0:00:26]} 31. Reg2 {[%clk 0:00:01]}  g5 {[%clk 0:00:21]} 32. Rxg5+ {[%clk 0:00:01]}  Kh6 {[%clk 0:00:21]} 33. Nf5# {[%clk 0:00:01]} 1-0


[Site "https://www.chess.com"]

[Event "Titled Tuesday Blitz March 28 Early 2023"]
[White "Sochacki, Christophe"]
[Black "Timofeev, Artyom"]
[WhiteFideId "662569"]
[BlackFideId "4140419"]
[WhiteElo "2474"]
[BlackElo "2586"]
[Result "0-1"]
[Round "07"]
[TimeControl "180+2"]
[Date "2023.03.28"]
[WhiteClock "0:00:01"]
[BlackClock "0:00:30"]

1. b3 {[%clk 0:03:00]}  c5 {[%clk 0:02:59]} 2. Nf3 {[%clk 0:02:59]}  d6 {[%clk 0:02:55]} 3. e3 {[%clk 0:02:57]}  e5 {[%clk 0:02:54]} 4. d4 {[%clk 0:02:57]}  cxd4 {[%clk 0:02:51]} 5. exd4 {[%clk 0:02:57]}  e4 {[%clk 0:02:51]} 6. Ng5 {[%clk 0:02:35]}  d5 {[%clk 0:02:50]} 7. h4 {[%clk 0:02:30]}  h6 {[%clk 0:02:46]} 8. Nh3 {[%clk 0:02:27]}  Qxh4 {[%clk 0:02:44]} 9. c4 {[%clk 0:02:21]}  Bb4+ {[%clk 0:02:38]} 10. Bd2 {[%clk 0:02:20]}  Bxd2+ {[%clk 0:02:37]} 11. Qxd2 {[%clk 0:02:21]}  Ne7 {[%clk 0:02:30]} 12. Nc3 {[%clk 0:02:08]}  O-O {[%clk 0:01:45]} 13. cxd5 {[%clk 0:02:04]}  Rd8 {[%clk 0:01:42]} 14. g3 {[%clk 0:02:02]}  Qf6 {[%clk 0:01:33]} 15. Nf4 {[%clk 0:02:02]}  Bf5 {[%clk 0:01:31]} 16. Bc4 {[%clk 0:01:49]}  Nd7 {[%clk 0:01:27]} 17. Nh5 {[%clk 0:01:30]}  Qg5 {[%clk 0:01:17]} 18. Nf4 {[%clk 0:00:48]}  Nb6 {[%clk 0:01:14]} 19. O-O-O {[%clk 0:00:40]}  Rac8 {[%clk 0:01:12]} 20. Rh5 {[%clk 0:00:36]}  Qf6 {[%clk 0:01:11]} 21. Rdh1 {[%clk 0:00:36]}  Nxc4 {[%clk 0:01:06]} 22. bxc4 {[%clk 0:00:35]}  Rxc4 {[%clk 0:01:06]} 23. g4 {[%clk 0:00:18]}  Rdc8 {[%clk 0:00:52]} 24. gxf5 {[%clk 0:00:16]}  Rxc3+ {[%clk 0:00:52]} 25. Kd1 {[%clk 0:00:17]}  Qa6 {[%clk 0:00:43]} 26. Ne2 {[%clk 0:00:15]}  Rd3 {[%clk 0:00:42]} 27. R1h3 {[%clk 0:00:07]}  Qa4+ {[%clk 0:00:39]} 28. Ke1 {[%clk 0:00:07]}  Rxd2 {[%clk 0:00:39]} 29. Kxd2 {[%clk 0:00:07]}  Nxd5 {[%clk 0:00:38]} 30. Ke1 {[%clk 0:00:02]}  Qxa2 {[%clk 0:00:35]} 31. f6 {[%clk 0:00:02]}  Nxf6 {[%clk 0:00:34]} 32. Re5 {[%clk 0:00:03]}  Qb1+ {[%clk 0:00:34]} 33. Kd2 {[%clk 0:00:03]}  Rc2+ {[%clk 0:00:33]} 34. Ke3 {[%clk 0:00:03]}  Ng4+ {[%clk 0:00:32]} 35. Kf4 {[%clk 0:00:02]}  Nxe5 {[%clk 0:00:32]} 36. Nc3 {[%clk 0:00:01]}  Rxc3 {[%clk 0:00:32]} 37. Rxc3 {[%clk 0:00:01]}  Ng6+ {[%clk 0:00:31]} 38. Kf5 {[%clk 0:00:01]}  e3+ {[%clk 0:00:30]} 0-1


[Site "https://www.chess.com"]